Cogmind - Beta 10.2 @@@ ROGUE MODE // 2021.01.27 @ 10:12:15 Player: Ramborex Result: Core destroyed Performance ------------- Evolutions (1) 500 Regions Visited (3) 600 Robots Destroyed (31) 155 Value Destroyed (727) 727 Prototype IDs (3) 60 Alien Tech Used (0) 0 Bonus (0) 0 TOTAL SCORE: 2042 Bonus ------- None Cogmind --------- Core Integrity 0/400 Matter 285/300 Energy 243/265 System Corruption 0% Temperature Cool (524) Movement Walking (150) Ox1 Location -9/Storage Parts ------- > --- POWER (1) -------- Improved Ion Engine > --- PROPULSION (2) --- Aluminum Leg Aluminum Leg > --- UTILITY (2) ------ Medium Storage Unit Medium Armor Plating > --- WEAPON (4) ------- Small Laser Beam Rifle Advanced Beam Cannon Light Assault Rifle > --- INVENTORY (8) ---- Ion Engine Light Treads Light Treads Improved Treads Aluminum Leg Aluminum Leg Large Storage Unit Improved Light Cannon Peak State ------------ > --- POWER ------------ Improved Ion Engine > --- PROPULSION ------- Aluminum Leg Improved Aluminum Leg > --- UTILITY ---------- Medium Storage Unit Improved Terrain Scanner > --- WEAPON ----------- Particle Gun Light Assault Rifle Light Assault Rifle Improved Light Cannon > --- INVENTORY -------- Improved Ion Engine Light Treads Light Treads Improved Treads Large Storage Unit Hardened Light Armor Plating Improved Light Cannon [Rating: 15] Favorites ----------- Power Improved Ion Engine Engine Improved Ion Engine Propulsion Aluminum Leg Leg Aluminum Leg Utility Medium Storage Unit Device Improved Terrain Scanner Storage Medium Storage Unit Protection Medium Armor Plating Weapon Light Assault Rifle Energy Gun Particle Gun Energy Cannon Advanced Beam Cannon Ballistic Gun Light Assault Rifle Ballistic Cannon Improved Light Cannon Build | -11 -10 -9 -9 ------- Run | Scr Mat Mat Sto Slots Evolved 2 | . . 2 . Power . | . . . . Propulsion . | . . . . Utility . | . . . . Weapon 2 | . . 2 . Parts Attached 30 | 7 1 18 4 Power 4 | 1 . 3 . Engine 4 | 1 . 3 . Core . | . . . . Reactor . | . . . . Propulsion 6 | 2 . 4 . Treads . | . . . . Leg 6 | 2 . 4 . Wheel . | . . . . Hover . | . . . . Flight . | . . . . Utility 5 | 2 1 1 1 Device 1 | 1 . . . Storage 2 | 1 1 . . Processor . | . . . . Hackware . | . . . . Protection 2 | . . 1 1 Artifact . | . . . . Weapon 15 | 2 . 10 3 Energy Gun 6 | 2 . 3 1 Energy Cannon 1 | . . . 1 Ballistic Gun 6 | . . 5 1 Ballistic Cannon 2 | . . 2 . Launcher . | . . . . Special Weapon . | . . . . Impact Weapon . | . . . . Slashing Weapon . | . . . . Piercing Weapon . | . . . . Special Melee Weapon . | . . . . Unidentified Prototypes 1 | . . . 1 Parts Lost 7 | . . 7 . Power . | . . . . Propulsion 2 | . . 2 . Utility . | . . . . Weapon 5 | . . 5 . Highest Loss Streak 6 | . . 6 . Average Slot Usage (%) 95 | . 100 95 94 Engine 11 | . 14 11 11 Leg 22 | . 28 21 22 Device 7 | . 14 8 . Storage 11 | . 14 11 11 Protection 4 | . . 2 11 Energy Gun 15 | . 28 9 16 Ballistic Gun 19 | . . 27 15 Ballistic Cannon 3 | . . 3 5 Naked Turns . | . . . . Heaviest Build 31 | 14 18 29 31 Greatest Support 23 | 20 20 23 20 Greatest Overweight (x) 4 | . . 4 1 Average Overweight (x) . | . . . 1 Largest Inventory Capacity 8 | 6 8 8 8 Average Capacity 7 | 5 7 8 8 Most Carried 8 | 5 8 8 8 Average Carried 7 | 3 6 7 8 Final Capacity 8 | 6 8 8 8 Final Carried 8 | 4 8 8 8 Class Distribution -------------------- 32% | Scavenger-Skirmisher 28% | Scavenger-Tank 26% | Mutant 8% | Tank 4% | Skirmisher Dominant Class ---------------- Mutant | -10/Materials Scavenger-Skirmisher | -9/Materials Scavenger-Tank | -9/Storage Resources | -11 -10 -9 -9 ----------- Run | Scr Mat Mat Sto Matter Collected 657 | 247 33 238 139 Remotely . | . . . . Salvage Created 1052 | 111 188 425 328 Parts 65 | 4 17 28 16 Haulers Intercepted 1 | . . . 1 Recyclers Shooed . | . . . . Parts Field Recycled . | . . . . Retrieved Matter . | . . . . Parts Self-Destructed . | . . . . Prevented . | . . . . Kills | -11 -10 -9 -9 ------- Run | Scr Mat Mat Sto Combat Hostiles Destroyed 24 | . 8 12 4 Guns 19 | . 6 10 3 Cannons 3 | . . 2 1 AOE 2 | . 2 . . Classes Destroyed 7 | 2 3 1 1 Tunneler 2 | 2 . . . Hauler 1 | . . . 1 Recycler 2 | 1 . . 1 Watcher 2 | . 1 . 1 Swarmer 9 | . 6 3 . Grunt 11 | . 2 7 2 Sentry 4 | . . 2 2 Best Kill Streak 4 | 3 3 4 2 Combat Bots Only 4 | . 3 4 1 Max Kills in Single Turn 2 | 1 2 1 1 Gunslinging . | . . . . Exploded 2 | . 2 . . Melee . | . . . . Uniques/NPCs Destroyed . | . . . . Combat | -11 -10 -9 -9 -------- Run | Scr Mat Mat Sto Damage Taken 1674 | . 175 1112 387 Core 456 | . 56 337 63 Absorbed by Shields . | . . . . Core Remaining (%) 88 | 100 77 . . Volleys Fired 92 | 6 14 47 25 Largest 4 | 2 2 4 4 Hottest 184 | 90 90 144 184 Shots Fired 255 | 12 28 127 88 Gun 230 | 12 28 115 75 Cannon 25 | . . 12 13 Launcher . | . . . . Special . | . . . . Kinetic 147 | . . 104 43 Thermal 85 | 6 14 20 45 Explosive . | . . . . Electromagnetic 23 | 6 14 3 . Robot Hit Streak 9 | 5 6 8 9 Robot Miss Streak 4 | 1 3 4 1 Penetration Max . | . . . . Secondary Targets 3 | . 1 2 . Max Gunslinging Chain 1 | . 1 1 . Shots Hit Robots 166 | 9 15 76 66 Core Hits 50 | 4 10 20 16 Critical Hits 1 | . . . 1 Critical Kills . | . . . . Critical Parts Destroyed . | . . . . Melee Attacks . | . . . . Impact . | . . . . Slashing . | . . . . Piercing . | . . . . Sneak Attacks . | . . . . Combat Hostiles . | . . . . Follow-up Attacks . | . . . . Damage Inflicted 1756 | 130 255 649 722 Guns 1399 | 110 182 570 537 Cannons 264 | . . 79 185 Explosions 93 | 20 73 . . Melee . | . . . . Ramming . | . . . . Kinetic 737 | . . 434 303 Thermal 817 | 46 149 203 419 Explosive . | . . . . Electromagnetic 202 | 84 106 12 . Impact . | . . . . Slashing . | . . . . Piercing . | . . . . Highest Corruption . | . . . . Average Corruption . | . . . . Corruption Purged . | . . . . Overload Shots . | . . . . Overflow Damage . | . . . . Projectiles . | . . . . Explosions . | . . . . Melee . | . . . . Knockbacks 1 | . . 1 . Impact . | . . . . Kinetic 1 | . . 1 . Secondary . | . . . . Self-Inflicted Damage 38 | . 38 . . Shots 1 | . 1 . . Rammed . | . . . . Targets Rammed . | . . . . Kicked . | . . . . Crushed . | . . . . Highest Temperature 594 | 150 150 594 524 Average Temperature 144 | 70 60 184 146 Received Heat Transfer 462 | . 18 333 111 Effects 10 | . . 6 4 Shutdowns 3 | . . 1 2 Energy Bleed 1 | . . . 1 Short Circuit 1 | . . 1 . Damage (minor) 2 | . . 2 . Damage (core) 3 | . . 2 1 Siege Activations . | . . . . Robots Corrupted . | . . . . Combat Hostiles . | . . . . Parts Fried . | . . . . Impact Corruptions . | . . . . Robots Melted . | . . . . Combat Hostiles . | . . . . Parts Melted 3 | 1 . 2 . Heat Transferred 1884 | 124 322 481 957 Parts Sabotaged . | . . . . Parts Stolen . | . . . . Parts Stripped . | . . . . Power Chain Reactions 2 | 1 1 . . Missiles Intercepted . | . . . . Alert | -11 -10 -9 -9 ------- Run | Scr Mat Mat Sto Peak Influence 265 | 15 265 190 258 Initial 111 | . 9 111 79 Average 126 | 6 110 125 174 Maximum Alert Level 1 | . 1 . 1 Low Security (%) 87 | 100 78 100 65 Level 1 12 | . 21 . 34 Level 2 . | . . . . Level 3 . | . . . . Level 4 . | . . . . Level 5 . | . . . . High Security . | . . . . Max Security . | . . . . Squads Dispatched 4 | . 1 2 1 Investigation 1 | . . 1 . Extermination . | . . . . Reinforcement 3 | . 1 1 1 Assault . | . . . . Garrison . | . . . . Intercept . | . . . . Construction Impeded . | . . . . Haulers Reinforced . | . . . . Stealth | -11 -10 -9 -9 --------- Run | Scr Mat Mat Sto Distress Signals 3 | . . 3 . Communications Jammed . | . . . . Distress Signals . | . . . . Times Spotted 34 | . 10 15 9 Peak Tracking Total 4 | . 4 4 4 Tactical Retreats . | . . . . Traps | -11 -10 -9 -9 ------- Run | Scr Mat Mat Sto Traps Triggered 1 | . . 1 . Indirectly . | . . . . Trap Hack Attempts . | . . . . Triggered . | . . . . Disarmed . | . . . . Reprogrammed . | . . . . Reused . | . . . . Traps Extracted . | . . . . Installed . | . . . . Triggered . | . . . . Machines | -11 -10 -9 -9 ---------- Run | Scr Mat Mat Sto Machines Disabled 1 | . 1 . . Max in Single Turn 1 | . 1 . . Machines Sabotaged . | . . . . Garrisons Compromised . | . . . . Overloaded Fab Kills . | . . . . Fab Network Shutdowns . | . . . . Hacking | -11 -10 -9 -9 --------- Run | Scr Mat Mat Sto Machines Accessed 5 | . 2 2 1 Terminals 3 | . 1 2 . Fabricators . | . . . . Repair Stations 1 | . . . 1 Recycling Units 1 | . 1 . . Scanalyzers . | . . . . Garrison Access . | . . . . Total Hacks 11 | . 5 4 2 Successful 9 | . 4 3 2 Failed 2 | . 1 1 . Catastrophic . | . . . . Database Lockouts . | . . . . Manual . | . . . . Terminals 8 | . 4 4 . Fabricators . | . . . . Repair Stations 2 | . . . 2 Recycling Units 1 | . 1 . . Scanalyzers . | . . . . Garrison Access . | . . . . Terminal Hacks 6 | . 3 3 . Record 2 | . 1 1 . Prototype ID Bank 1 | . 1 . . Emergency Access Points 1 | . . 1 . Zone Layout 2 | . 1 1 . Fabricator Hacks . | . . . . Repair Station Hacks 2 | . . . 2 Scan Component 1 | . . . 1 Repair 1 | . . . 1 Recycling Unit Hacks 1 | . 1 . . Retrieve Components 1 | . 1 . . Scanalyzer . | . . . . Garrison Access Hacks . | . . . . Unauthorized Hacks . | . . . . Terminals . | . . . . Fabricators . | . . . . Repair Stations . | . . . . Recycling Units . | . . . . Scanalyzers . | . . . . Garrison Access . | . . . . Data Cores Recovered . | . . . . Used . | . . . . Hacking Detections 4 | . 2 1 1 Full Trace Events . | . . . . Feedback Events . | . . . . Feedback Blocked . | . . . . Robot Schematics Acquired . | . . . . Robots Built . | . . . . Matter . | . . . . Time . | . . . . Total Robot Build Rating . | . . . . Part Schematics Acquired . | . . . . Parts Built . | . . . . Matter . | . . . . Time . | . . . . Total Part Build Rating . | . . . . Parts Repaired 1 | . . . 1 Time 26 | . . . 26 Parts Recycled . | . . . . Recycled Matter . | . . . . Retrieved Matter . | . . . . Retrieved Components 4 | . 4 . . Parts Scanalyzed . | . . . . Part Schematics Acquired . | . . . . Parts Damaged . | . . . . Bothacking | -11 -10 -9 -9 ------------ Run | Scr Mat Mat Sto Used RIF Installer . | . . . . Robots Hacked . | . . . . Non-combat . | . . . . Combat . | . . . . Robot Hacks Applied . | . . . . Relay Couplers Released . | . . . . Robots Rewired . | . . . . Allies Hacked . | . . . . Hacks Repelled . | . . . . Allies | -11 -10 -9 -9 -------- Run | Scr Mat Mat Sto Total Allies . | . . . . Largest Group . | . . . . Highest-Rated Group . | . . . . Highest-Rated Ally . | . . . . Total Orders . | . . . . Ally Attacks . | . . . . Total Damage . | . . . . Kills . | . . . . Allies Corrupted . | . . . . Allies Melted . | . . . . Intel | -11 -10 -9 -9 ------- Run | Scr Mat Mat Sto Robot Analysis Total . | . . . . Derelict Logs Recovered . | . . . . Drone Launches . | . . . . Drone Recoveries . | . . . . Exploration | -11 -10 -9 -9 ------------- Run | Scr Mat Mat Sto Turns Passed 1473 | 111 239 739 384 Spaces Moved 810 | 71 156 429 154 Core 14 | 12 . 2 . Treads . | . . . . Legs 796 | 59 156 427 154 Wheels . | . . . . Hover . | . . . . Flight . | . . . . Fastest Speed 50 | 50 120 120 150 Average Speed 128 | 108 120 126 150 Slowest Speed 250 | 120 120 250 150 Overloaded Moves . | . . . . Propulsion Burnouts . | . . . . Robots Hopped . | . . . . Cave-ins Triggered . | . . . . Exploration Rate (%) 20 | 5 32 22 23 Regions Visited 3 Branch Regions 1 Pre-discovered Areas . | . . . . Known Exits Taken . | . . . . Unknown Exits Taken 3 | 1 1 1 . Scrap Searched . | . . . . Spaces Dug . | . . . . Terrain Destroyed 3 | . 2 1 . Melee . | . . . . Projectile 1 | . . 1 . AOE 2 | . 2 . . Terrain Rammed . | . . . . Walls Destroyed . | . . . . Machines Disabled . | . . . . Actions | -11 -10 -9 -9 --------- Run | Scr Mat Mat Sto Total 1079 | 92 180 552 255 Wait 105 | . 4 32 69 Move 807 | 70 155 428 154 Hop . | . . . . Pick Up 29 | 9 5 15 . Fast Attach 7 | 2 . 2 3 Attach 15 | 5 . 10 . Detach 1 | . . 1 . Swap 8 | . 1 6 1 Drop 15 | . 1 11 3 Fire 92 | 6 14 47 25 Melee . | . . . . Ram . | . . . . Kick . | . . . . Crush . | . . . . Escape Stasis . | . . . . Rewire . | . . . . Trap . | . . . . Miscellaneous . | . . . . Route ------- -11/Scrapyard -10/Materials -9/Materials -9/Storage History --------- Turn | Location | Event 5 | -11/Scrapyard | Discovered new exit (range 15) 112 | -11/Scrapyard | Entered Materials 282 | -10/Materials | Discovered new exit (range 6) 314 | -10/Materials | Build established: Mutant 351 | -10/Materials | Entered another Materials area 351 | -9/Materials | Evolved 2 slots: Weapon x2 393 | -9/Materials | Discovered new exit (range 12) 470 | -9/Materials | Lost 6 parts (2n4w) 755 | -9/Materials | Build established: Scavenger-Skirmisher 889 | -9/Materials | Core integrity fell below 50% 1053 | -9/Materials | Core integrity fell below 20% 1090 | -9/Materials | Entered Storage 1184 | -9/Storage | Repaired Lgt. Assault Rifle 1369 | -9/Storage | Build established: Scavenger-Tank 1475 | -9/Storage | Core destroyed Last Messages --------------- 01342_ G-34 Mercenary destroyed. 01345_ Acquired 2 matter. 01397_ ALERT: Hostiles spotted, dispatching reinforcements to Terminal S012. 01425_ T-07 Excavator destroyed. 01425_ A-02 Transporter destroyed. 01428_ Acquired 7 matter. 01431_ Acquired Prototype Energy Cannon. 01431_ Identified Adv. Beam Cannon. 01441_ K-01 Serf collects debris. 01457_ G-34 Mercenary destroyed. 01458_ K-01 Serf collects debris. 01459_ U-05 Engineer builds a Door. 01459_ K-01 Serf collects debris. 01472_ Power failure, Imp. Ion Engine shutdown. 01472_ Y-45 Defender suffers critical hit. 01472_ K-01 Serf collects debris. 01474_ Y-45 Defender heat short circuits Heat Sink. 01474_ K-01 Serf collects debris. 01475_ Overheating: Core damaged (-48). Map ----- +----------------------------------------------------+ | ?????????????????????????????????????????? | | ?????????????????????????????????????????? | | ?????????????????????????????????????????? | | ?????????????????????????????????????????? | | ?????????????????????????????????????????? | | ?????????????????????????????????????????? | | ?????????????????????????????????????????? | | ?????????????????????????????????????????? | | ?????????????????????????????????????????? | | ?????????????????????????????????????????? | | ?????????????????????????????????????????? | | ?????????????????????????????????????????? | | ?????????????????????????????????????????? | | ?????????????????????????????????????????? | | ????????????????????????????????? ?????? | | ????????????????????????????????? #????? | | ????????????????????????????????? #????? | | ????????????????????????????????# #????? | | ????????????????##########??????+ #????? | | ????????????#???# !a #??????# #????? | | ????????????# ??# r #??????# #????? | | ???????????## ?# #??????# #????? | | ???????????# #[ [ u #??????# #????? | | ???????????+ =#= k #??????# #????? | | ???????????# *Y% k #??????# #????? | | ???????????# #@ * #??????# #????? | | ???????????## ??# ! #??????# +????? | | ????????????????# Yg #??????# #????? | | ????????????????###/######??????# #????? | | ????????????# ????# ############# #????? | | ????????????# #### # % + #????? | | ????????????# #]! ! = ####+#####?? | | ????????????# ^ # ] =# #?? | | ????????????# +%[! # """"" #?? | | ????????????#^ #[] # ????" #?? | | ????????????#^ ########### ""??" #?? | | ????????????# ?????????# "??"" #?? | | ?????????? !!! ?????????# "???" #?? | | ?????????# !!! ?????????# """"" #?? | | ?????????+ !! ?????????# #?? | | ?????????# ##"T"#####????????# #?? | | ?????????# ?####?????????????###+######?? | | ?????????# ???????????????????###%###????? | | ?????????#????????????????????# == ###### | | ??????????????????????????????# | | ??????????????????????????????# | | ??????????????????????????????# | | ??????????????????????????????# ###### | | ??????????????????????????????#######????? | | ?????????????????????????????????????????? | +----------------------------------------------------+ Best States ------------- Heat Dissipation 28 Energy Generation 12 Energy Capacity 265 Matter Stores 300 Matter Capacity 300 Sight Range 16 Terrain Scan Range 16 Terrain Scan Density 10 Armor Coverage 225 Evasion (%) 50 Item Schematics ----------------- None Robot Schematics ------------------ None Fabricated ------------ Nothing Alien Tech Used ----------------- None Achievements -------------- None Challenges ------------ None Game ------ Seed ThunderTerrabombRifle Manual? 0 Play Time 00:18:44 Cumulative 14.5 hours Start 2021.01.27 @ 07:50:56 End 2021.01.27 @ 10:12:15 Sessions 3 Manual Loads 0 Difficulty Rogue Special Mode None Game No. 25 Rogue 25 Adventurer 0 Explorer 0 Win Type - Total 0 Types 0/0/0/0/0/0/0/0/0 Lore% 8 Gallery% 16 Achievement% 14 Wizard Run 0 Options --------- ASCII 0 Keyboard 0 Movement Numpad Keybinds 0 Fullscreen 1 Font 18/SmallcapsGlow Map View 76x50 Tactical HUD 1 Map Filters NONE Filters NONE Steam 1 RUN: 3fdc2ce8-8a1d-4c59-a6b9-78999f773dbf